bitfinex/quotes_ETHUSD_20251127
["timestamp","ask_amount","ask_price","bid_price","bid_amount"]
[1764234858383,4.94642576,3030.1,3030.0,0.001]
[1764234858898,4.46882576,3030.1,3030.0,0.4572]
[1764234859068,4.33660463,3030.1,3030.0,0.4572]
[1764234859598,5.29130463,3030.1,3030.0,0.001]
[1764234861391,6.31773464,3030.1,3030.0,0.001]
[1764234861591,6.10776435,3030.1,3030.0,0.001]
[1764234863497,5.08133434,3030.1,3030.0,0.001]
[1764234863996,4.12663434,3030.1,3030.0,0.9409]
[1764234864296,4.12663434,3030.1,3030.0,0.4572]
[1764234865165,5.31380906,3030.1,3030.0,0.4572]
[1764234869603,5.31380906,3030.1,3030.0,0.001]
[1764234870394,7.40427905,3030.1,3030.0,0.001]
[1764234872375,6.26850906,3030.1,3030.0,0.001]
[1764234877696,6.40073019,3030.1,3030.0,0.001]
[1764234877892,5.92363019,3030.1,3030.0,0.001]
[1764234878093,5.44603019,3030.1,3030.0,0.9409]
[1764234879904,5.94523019,3030.1,3030.0,0.001]
[1764234880202,7.52118839,3030.1,3030.0,0.001]
[1764234880401,6.41835628,3030.1,3030.0,0.001]
[1764234880700,5.44615628,3030.1,3030.0,0.4578]
[1764234880906,5.44615628,3030.1,3030.0,0.9315]
[1764234881214,5.44615628,3030.1,3030.0,3.6795303]
[1764234881517,4.25898156,3030.1,3030.0,3.6795303]
[1764234881714,4.25898156,3030.1,3030.0,4.04758333]
[1764234881881,1.16953074,3030.1,3030.0,4.04758333]
[1764234882210,1.16873074,3030.1,3030.0,4.04758333]
[1764234882387,4.46895185,3030.1,3030.0,4.04758333]
[1764234883775,4.46895185,3030.1,3030.0,1.29955303]
[1764234883983,4.46895185,3030.1,3030.0,0.4578]
[1764234885904,4.46895185,3030.1,3030.0,0.9315]
[1764234886978,4.46895185,3030.1,3030.0,0.4578]
[1764234888128,4.46895185,3030.1,3030.0,0.9315]
[1764234890819,4.46895185,3030.1,3030.0,0.4578]
[1764234893625,4.46895185,3030.1,3030.0,0.4603]
[1764234895317,4.46895185,3030.1,3030.0,0.934]
[1764234898436,4.46895185,3030.1,3030.0,0.4603]
[1764234900124,4.46001767,3030.1,3030.0,0.4603]
[1764234901241,4.94001767,3030.1,3030.0,0.0035]
[1764234901412,5.43201767,3030.1,3030.0,0.0035]
[1764234901801,4.94001767,3030.1,3030.0,0.0035]
[1764234902203,4.46001767,3030.1,3030.0,0.4603]
[1764234902606,4.46001767,3030.1,3030.0,0.934]
[1764234905154,6.32323499,3030.1,3030.0,0.0035]
[1764234905356,4.95921767,3030.1,3030.0,0.0035]
[1764234905861,4.95841767,3030.1,3030.0,0.0035]
[1764234909442,5.35023499,3030.1,3030.0,0.4924]
[1764234909765,5.35023499,3030.1,3030.0,0.9903]
[1764234909969,2.05001388,3030.1,3030.0,0.9903]
[1764234910168,4.45921767,3030.1,3030.0,0.9903]
[1764234910463,1.15899656,3030.1,3030.0,0.9903]
[1764234911039,4.45921767,3030.1,3030.0,0.9903]
[1764234912865,4.45921767,3030.1,3030.0,0.4924]
[1764234914249,4.45921767,3030.1,3030.0,0.9452]
[1764234914940,4.45921767,3030.1,3030.0,0.4924]
[1764234918285,4.91081767,3030.1,3030.0,0.0035]
[1764234919163,4.45921767,3030.1,3030.0,0.0035]
[1764234922780,4.91081767,3030.1,3030.0,0.0035]
[1764234923088,5.80253198,3030.1,3030.0,0.0035]
[1764234924380,5.8024408,3030.1,3030.0,0.0035]
[1764234926168,5.3508408,3030.1,3030.0,0.0035]
[1764234926558,5.3508408,3030.1,3030.0,0.4994]
[1764234928082,5.3508408,3030.1,3030.0,0.0035]
[1764234929773,5.3500408,3030.1,3030.0,0.0035]
[1764234931372,5.3500408,3030.1,3030.0,0.4994]
[1764234932488,4.45832649,3030.1,3030.0,0.4994]
[1764234938062,4.32610536,3030.1,3030.0,0.4994]
[1764234938264,4.32610536,3030.1,3030.0,0.9522]
[1764234939265,0.31162432,3030.1,3030.0,1.34188277]
[1764234939698,0.31162432,3030.1,3030.0,1.74738677]
[1764234939864,0.31153885,3030.1,3030.0,1.74738677]
[1764234943808,0.31153885,3030.1,3030.0,1.357704]
[1764234947577,0.002,3030.1,3030.0,4.65803403]
[1764234947778,0.002,3030.1,3030.0,4.96957288]
[1764234949913,0.002,3030.1,3030.0,5.66957288]
[1764234950214,0.002,3030.1,3030.0,4.96957288]
[1764234950514,0.002,3030.1,3030.0,6.09103054]
[1764234952715,0.002,3030.1,3030.0,11.58223584]
[1764234953615,0.0012,3030.1,3030.0,11.58223584]
[1764234954907,0.0012,3030.1,3030.0,8.83663319]
[1764234961329,0.002,3031.0,3030.8,0.405504]
[1764234961626,0.002,3031.0,3030.9,4.07930665]
[1764234962005,0.002,3031.0,3030.9,7.51079219]
[1764234962911,0.002,3031.0,3030.9,7.37865667]
[1764234963224,0.002,3031.0,3030.9,7.51078521]
[1764234963427,0.002,3031.0,3030.9,8.88605918]
[1764234964890,0.002,3031.0,3030.9,9.58605918]
[1764234966729,0.002,3031.1,3031.0,0.405504]
[1764234966929,0.002,3031.1,3031.0,4.07930665]
[1764234967813,0.002,3031.3,3031.0,4.07930665]
[1764234968126,0.002,3031.3,3031.2,9.86023278]
[1764234968436,0.002,3031.4,3031.3,0.405504]
[1764234968602,0.002,3031.4,3031.3,1.333704]
[1764234970209,0.002,3031.4,3031.3,5.62337325]
[1764234972330,0.002,3031.4,3031.3,5.16277325]
[1764234972530,0.002,3031.4,3031.3,7.20536707]
[1764234974232,0.002,3031.4,3031.3,7.41336707]
[1764234976623,0.002,3031.4,3031.3,10.15896972]
[1764234976813,0.002,3031.4,3031.3,7.41336707]
[1764234977008,0.002,3031.4,3031.3,6.42261247]
[1764234977207,0.0012,3031.4,3031.3,6.42261247]
[1764234980518,0.0012,3031.4,3031.3,8.65761512]
[1764234980817,0.0012,3031.4,3031.3,11.89781777]
[1764234982030,0.0012,3031.4,3031.3,9.15221512]
[1764234982825,0.0012,3031.4,3031.3,8.65761512]
[1764234983107,0.0012,3031.4,3031.3,9.15221512]
[1764234983345,0.0012,3031.4,3031.3,9.62791512]
[1764234989825,0.0012,3031.4,3031.3,13.09911188]
[1764234990355,0.0012,3031.4,3031.3,14.27789786]
[1764234990655,0.0012,3031.4,3031.3,13.09911188]
[1764234990818,0.002,3031.8,3031.5,0.405504]
[1764234991018,0.002,3031.8,3031.7,7.07390341]
[1764234991228,0.002,3031.8,3031.7,7.98929375]
[1764234991534,0.002,3031.8,3031.7,9.26592115]
[1764234992135,0.002,3031.8,3031.7,6.5203185]
[1764234992519,0.002,3031.8,3031.7,12.56440055]
[1764234992931,0.002,3031.8,3031.7,9.8187979]
[1764234993138,0.002,3031.8,3031.7,12.56440055]
[1764234994730,0.002,3031.8,3031.7,14.33882103]
[1764234995323,0.002,3031.8,3031.7,12.56440055]
[1764235000323,0.002,3031.8,3031.7,13.74101435]
[1764235000938,0.0012,3031.8,3031.7,13.74101435]
[1764235001964,0.002,3032.1,3031.8,1.13109811]
[1764235002129,0.002,3032.1,3032.0,6.3682093]
[1764235002633,0.002,3032.1,3032.0,6.94592322]
[1764235003663,0.002,3032.1,3032.0,10.24407625]
[1764235004247,0.002,3032.2,3032.1,1.13109811]
[1764235004446,0.002,3032.2,3032.1,4.83443865]
[1764235004648,0.002,3032.5,3032.1,4.11382217]
[1764235004960,0.1934,3034.0,3032.5,0.405504]
[1764235005162,0.96155348,3033.9,3033.8,2.74560265]
[1764235005362,0.96155348,3033.9,3033.8,3.35910665]
[1764235005661,1.1073,3033.9,3033.8,0.94941467]
[1764235006233,1.1073,3033.9,3033.8,3.69501732]
[1764235007349,0.1854,3034.6,3033.9,0.405504]
[1764235007557,0.4684,3034.2,3033.9,0.405504]
[1764235007754,0.4684,3034.2,3034.0,3.15110665]
[1764235008238,0.4535,3034.1,3034.0,3.15110665]
[1764235008446,0.1854,3034.6,3034.0,3.15110665]
[1764235008447,0.6538,3034.6,3034.0,3.15110665]
[1764235008741,0.6538,3034.6,3034.3,0.405504]
[1764235008942,0.6538,3034.6,3034.4,0.208]
[1764235008943,0.4684,3034.5,3034.4,0.208]
[1764235009332,0.9219,3034.5,3034.4,0.208]
[1764235009528,0.9219,3034.5,3034.4,0.613504]
[1764235010156,0.9219,3034.5,3034.4,0.208]
[1764235011432,4.65760007,3034.5,3034.4,0.208]
[1764235011664,1.36216425,3034.5,3034.4,0.208]
[1764235012057,4.65760007,3034.5,3034.4,0.208]
[1764235013570,10.88878269,3034.5,3034.3,0.208]
[1764235013771,0.6389,3033.4,3032.5,2.9357468]
[1764235014061,0.6389,3033.4,3032.6,0.50157468]
[1764235014062,0.0945,3033.1,3032.6,0.50157468]
[1764235014262,0.0945,3033.1,3032.9,0.72559411]
[1764235014466,0.4684,3033.0,3032.8,2.9357468]
[1764235014680,0.4684,3033.0,3032.6,0.29357468]
[1764235014681,0.1854,3033.4,3032.9,0.7]
[1764235014847,0.9219,3033.0,3032.9,0.7]
[1764235015173,0.4535,3033.0,3032.9,1.313504]
[1764235015330,0.9219,3033.0,3032.9,1.313504]
[1764235015678,0.9219,3033.0,3032.9,0.908]
[1764235015972,0.9219,3033.0,3032.9,0.208]
[1764235017065,0.9219,3033.0,3032.2,3.29793549]
[1764235017235,0.99047002,3033.0,3032.4,2.9357468]
[1764235017439,0.4684,3032.9,3032.4,2.9357468]
[1764235017640,0.4684,3032.9,3032.5,0.405504]
[1764235017841,0.99036212,3033.4,3033.1,0.405504]
[1764235018043,0.4684,3034.2,3033.4,0.72559411]
[1764235018341,0.002,3034.5,3033.7,0.405504]
[1764235018342,0.1854,3033.9,3033.7,0.405504]
[1764235018562,0.1854,3033.9,3033.8,0.613504]
[1764235019075,1.1073,3033.9,3033.8,0.613504]
[1764235019959,1.1073,3033.9,3033.8,3.90970018]
[1764235020362,4.40338754,3033.9,3032.8,1.17489581]
[1764235020541,0.0945,3033.7,3032.9,0.208]
[1764235020738,0.0945,3033.7,3032.9,0.6637]
[1764235021150,0.4684,3033.6,3032.9,0.208]
[1764235021350,0.4684,3033.6,3033.2,0.405504]
[1764235021549,0.4684,3033.6,3033.3,0.208]
[1764235021944,0.4535,3033.4,3033.3,3.91022133]
[1764235022459,0.9219,3033.4,3033.3,3.91024352]
[1764235023157,0.4535,3033.4,3033.3,3.91024352]
[1764235023455,0.9219,3033.4,3033.3,3.91024352]
[1764235024756,0.9211,3033.4,3033.3,3.91024352]
[1764235025198,0.9211,3033.4,3033.3,0.613504]
[1764235025657,1.22876516,3033.4,3033.3,0.613504]
[1764235026060,0.9211,3033.4,3033.3,0.613504]
[1764235026258,1.22880815,3033.4,3033.3,0.613504]
[1764235026470,1.22880815,3033.4,3032.0,0.99021829]
[1764235026673,1.22880815,3033.4,3032.1,6.99400576]
[1764235026674,0.0945,3033.1,3032.1,6.99400576]
[1764235026879,0.0945,3033.1,3032.1,10.74775001]
[1764235027051,0.0945,3033.1,3032.2,0.4557]
[1764235027252,0.0945,3033.1,3032.3,0.405504]
[1764235027450,1.17561829,3033.9,3033.1,0.405504]
[1764235027655,0.77610977,3033.8,3033.2,0.208]
[1764235027853,0.4684,3033.8,3033.2,0.208]
[1764235028080,0.4535,3033.3,3033.2,0.613504]
[1764235028570,0.9219,3033.3,3033.2,0.613504]
[1764235031583,0.9219,3033.3,3033.2,0.208]
[1764235031786,4.21863952,3033.3,3033.2,0.208]
[1764235031962,4.97016673,3033.3,3033.2,0.208]
[1764235032166,1.67342721,3033.3,3033.2,0.208]
[1764235032484,0.9219,3033.3,3033.2,0.208]
[1764235036696,4.21863952,3033.3,3033.2,0.208]
[1764235037197,4.62414352,3033.3,3033.2,0.208]
[1764235040394,4.93219364,3033.3,3033.2,0.208]
[1764235041783,0.4859,3033.3,3033.2,0.613504]
[1764235042092,0.9359,3033.3,3033.2,0.208]
[1764235045016,1.2441922,3033.3,3033.2,0.208]
[1764235046105,1.2441922,3033.3,3033.2,0.613504]
[1764235046397,1.2441922,3033.3,3033.1,0.001]
[1764235046398,4.54093172,3033.3,3033.1,0.001]
[1764235046578,1.62205046,3033.2,3033.1,0.001]
[1764235046769,1.62205046,3033.2,3033.1,0.209]
[1764235048169,4.91889867,3033.2,3033.1,0.209]
[1764235048571,4.91809867,3033.2,3033.1,0.209]
[1764235049501,4.13494158,3033.2,3033.1,0.209]
[1764235049801,0.83809337,3033.2,3033.1,0.209]
[1764235050107,4.13494158,3033.2,3033.1,0.209]
[1764235050829,4.59824158,3033.2,3033.1,0.209]
[1764235051831,0.002,3033.4,3033.2,0.405504]
[1764235051979,0.002,3033.4,3033.3,1.71939578]
[1764235052310,0.002,3033.4,3033.3,5.4794353]
[1764235054003,0.002,3033.4,3033.3,1.23909578]
[1764235054177,0.002,3033.4,3033.3,0.405504]
[1764235054376,0.002,3033.4,3033.3,4.18254352]
[1764235055010,0.002,3033.4,3033.3,0.885804]
[1764235055212,0.002,3033.4,3033.3,4.18254352]
[1764235056419,0.4879,3033.4,3033.3,0.405504]
[1764235057319,0.002,3033.4,3033.3,0.405504]
[1764235058820,0.4879,3033.4,3033.3,0.405504]
[1764235059025,0.4879,3033.4,3033.3,0.885804]
[1764235059026,0.002,3033.4,3033.3,0.885804]
[1764235059193,0.002,3033.4,3033.3,1.32496868]
[1764235059592,0.002,3033.4,3033.3,0.405504]
[1764235060204,0.4879,3033.4,3033.3,0.405504]
[1764235062794,0.9402,3033.4,3033.3,0.405504]
[1764235062995,4.23683084,3033.4,3033.3,0.405504]
[1764235063300,4.23683084,3033.4,3033.3,0.613504]
[1764235063301,1.24870986,3033.4,3033.3,0.613504]
[1764235063890,1.24870986,3033.4,3033.3,0.208]
[1764235064913,4.5453407,3033.4,3033.3,0.208]
[1764235065328,1.24870986,3033.4,3033.3,0.208]
[1764235066301,1.24870986,3033.4,3033.3,1.083704]
[1764235066302,0.002,3033.4,3033.3,1.083704]
[1764235066541,0.002,3033.4,3033.3,1.554204]
[1764235066825,0.002,3033.4,3033.3,2.254204]
[1764235067026,0.002,3033.4,3033.3,1.783704]
[1764235068318,0.5007,3033.4,3033.3,1.313504]
[1764235068517,0.953,3033.4,3033.3,0.613504]
[1764235072329,0.9522,3033.4,3033.3,0.613504]
[1764235072827,0.9522,3033.4,3033.3,0.208]
[1764235073429,0.0012,3033.4,3033.3,1.265704]
[1764235073730,0.0012,3033.4,3033.3,5.23217333]
[1764235076728,0.0012,3033.4,3033.3,5.93217333]
[1764235078939,0.0012,3033.4,3033.3,6.65776744]
[1764235080235,0.0012,3033.4,3033.3,7.83196328]
[1764235081110,0.0012,3033.4,3033.3,6.65776744]
[1764235081708,0.002,3033.7,3033.6,8.09185051]
[1764235081910,0.002,3033.7,3033.6,10.17138731]
[1764235082421,0.002,3033.7,3033.6,11.34630572]
[1764235082807,0.002,3033.7,3033.6,10.17138731]
[1764235083647,0.002,3033.7,3033.6,12.2432159]
[1764235084246,0.002,3033.7,3033.6,10.4796449]
[1764235084540,0.002,3033.7,3033.6,12.2432159]
[1764235085339,0.002,3033.7,3033.6,10.4796449]
[1764235085528,0.002,3033.7,3033.6,11.6518159]
[1764235086029,0.002,3033.7,3033.6,10.17138731]
[1764235089652,0.002,3033.7,3033.6,6.69814841]
[1764235093544,0.002,3033.7,3033.6,7.02844841]
[1764235093749,0.002,3033.7,3033.6,6.69814841]
[1764235095225,0.002,3033.7,3033.6,7.87031941]
[1764235096060,0.0012,3033.7,3033.6,7.87031941]
[1764235096347,0.6435,3035.2,3033.7,1.13109811]
[1764235096544,0.6435,3035.2,3034.5,0.405504]
[1764235096843,0.6435,3035.2,3034.7,0.405504]
[1764235097050,0.184,3035.2,3034.7,0.405504]
[1764235097230,0.4595,3035.1,3034.7,0.405504]
[1764235097434,0.4948,3034.8,3034.7,0.405504]
[1764235097821,0.9543,3034.8,3034.7,0.405504]
[1764235098430,0.4948,3034.8,3034.7,4.09159689]
[1764235098635,0.184,3035.2,3034.7,10.61254908]
[1764235098837,0.6435,3035.2,3034.7,10.61254908]
[1764235099752,0.6435,3035.2,3034.7,7.31733045]
[1764235099955,0.184,3035.2,3034.7,7.31733045]
[1764235100124,0.184,3035.2,3034.9,0.405504]
[1764235100321,6.58761528,3036.0,3035.1,0.893804]
[1764235100558,0.7669628,3035.9,3035.1,3.14293756]
[1764235100859,0.4948,3035.2,3035.1,3.14293756]
[1764235101252,6.58761528,3036.0,3035.1,3.14293756]
[1764235101253,0.4595,3035.5,3035.1,3.14293756]
[1764235101453,0.4595,3035.5,3035.3,0.405504]
[1764235101660,0.4595,3035.5,3035.4,0.613504]
[1764235101858,0.9543,3035.5,3035.4,0.613504]
[1764235104927,0.4948,3035.5,3035.4,0.613504]
[1764235105456,0.4948,3035.5,3035.4,1.27804834]
[1764235105824,0.9543,3035.5,3035.4,1.27804834]
[1764235106163,0.9543,3035.5,3035.4,0.613504]
[1764235107229,4.24865018,3035.5,3035.4,0.613504]
[1764235107464,4.24865018,3035.5,3034.7,3.12830782]
[1764235107465,7.54300036,3035.5,3034.7,3.12830782]
[1764235107673,0.2288,3034.8,3034.3,6.59130606]
[1764235107958,0.2288,3034.8,3034.4,0.93359411]
[1764235108178,0.4595,3034.7,3034.6,0.7]
[1764235108458,0.4595,3034.7,3034.6,1.83109811]
[1764235108641,0.9498,3034.7,3034.6,5.12642533]
[1764235108975,0.9498,3034.7,3034.6,0.7]
[1764235109143,0.9498,3034.7,3034.6,0.908]
[1764235109332,0.9498,3034.7,3034.6,1.313504]
[1764235109945,0.9498,3034.7,3034.6,0.908]
[1764235110140,0.9498,3034.7,3034.6,0.208]
[1764235110345,0.1865,3035.2,3034.7,0.405504]
[1764235110659,0.4948,3034.8,3034.7,0.84520647]
[1764235111065,0.4948,3034.8,3034.1,4.02142942]
[1764235111066,0.9543,3034.8,3034.0,1.17105536]
[1764235111232,0.0423,3034.7,3034.1,0.93359411]
[1764235111430,0.5018,3034.7,3034.1,0.93359411]
[1764235111642,0.5018,3034.7,3034.2,0.405504]
[1764235111860,0.5018,3034.7,3034.1,0.93359411]
[1764235112058,0.5018,3034.7,3034.2,0.75254605]
[1764235112229,0.0423,3034.7,3034.3,0.405504]
[1764235112437,0.5018,3034.7,3034.3,0.405504]
[1764235112636,0.5018,3034.7,3034.5,0.405504]
[1764235112967,0.5018,3034.7,3034.6,0.208]
[1764235113263,0.4595,3034.7,3034.6,0.208]
[1764235113562,0.9543,3034.7,3034.6,0.208]
[1764235113759,0.9543,3034.7,3034.6,0.613504]
[1764235114938,0.9543,3034.7,3034.6,4.2997181]
[1764235114939,0.4948,3034.7,3034.6,4.2997181]
[1764235118053,0.4948,3034.7,3034.6,0.79639088]
[1764235118054,0.9543,3034.7,3034.6,0.79639088]
[1764235118247,0.9543,3034.7,3034.6,0.613504]
[1764235119856,0.6565,3035.2,3034.7,0.405504]
[1764235120053,0.30823659,3035.1,3034.7,0.405504]
[1764235120256,0.30823659,3035.0,3034.7,0.405504]
[1764235120558,0.47,3035.1,3034.8,0.5988774]
[1764235120867,0.4699,3034.9,3034.8,1.0043814]
[1764235121270,0.4699,3034.9,3034.8,3.90861405]
[1764235121567,0.4699,3034.9,3034.8,0.613504]
[1764235121768,0.9399,3034.9,3034.8,3.90861405]
[1764235122061,0.9399,3034.9,3034.8,0.613504]
[1764235122273,0.1865,3035.2,3034.8,4.37021405]
[1764235122567,0.6581,3035.4,3035.0,0.405504]
[1764235122758,0.30830268,3035.3,3035.0,0.405504]
[1764235122958,0.4699,3035.1,3035.0,0.405504]
[1764235123150,0.4699,3035.1,3034.9,3.731934]
[1764235123151,0.4699,3035.1,3034.9,3.73193642]
[1764235123349,0.4699,3035.1,3035.0,0.613504]
[1764235123350,0.47,3035.1,3035.0,0.613504]
[1764235123754,0.9399,3035.1,3035.0,0.84005354]
[1764235123961,0.9399,3035.1,3035.0,0.613504]
[1764235124154,0.4699,3035.1,3035.0,0.613504]
[1764235125074,0.9399,3035.1,3035.0,0.613504]
[1764235127544,4.23468435,3035.1,3035.0,0.613504]
[1764235128066,0.9399,3035.1,3035.0,0.613504]
[1764235130373,0.4699,3035.1,3035.0,0.613504]
[1764235130881,0.9399,3035.1,3035.0,0.613504]
[1764235131975,1.248253,3035.1,3035.0,0.613504]
[1764235132187,1.248253,3035.1,3035.0,0.405504]
[1764235132365,4.54303735,3035.1,3035.0,0.613504]
[1764235132670,1.248253,3035.1,3035.0,0.613504]
[1764235133411,4.54303735,3035.1,3035.0,0.613504]
[1764235134679,8.89561294,3035.1,3034.1,0.0459]
[1764235134876,8.89561294,3035.1,3034.2,3.90916139]
[1764235134877,0.0542,3034.6,3034.2,3.90916139]
[1764235135392,0.0542,3034.6,3034.2,7.68332304]
[1764235135699,0.1881,3034.8,3034.2,7.68332304]
[1764235135865,0.6581,3034.8,3034.2,7.68332304]
[1764235136280,0.77856607,3034.7,3034.4,0.405504]
[1764235136453,0.47,3034.7,3034.4,0.405504]
[1764235136761,0.1881,3034.8,3034.4,0.405504]
[1764235136963,0.30856605,3034.7,3034.4,0.883904]
[1764235137167,0.1881,3034.8,3034.4,0.883904]
[1764235137375,0.30862016,3034.7,3034.6,0.405504]
[1764235137582,0.30862016,3034.7,3034.6,0.613504]
[1764235137951,0.30862016,3034.7,3034.6,4.37043122]
[1764235138154,0.002,3035.2,3034.6,4.84883122]
[1764235138480,0.30861784,3035.1,3034.6,8.14415844]
[1764235138677,0.30861784,3035.0,3034.8,0.405504]
[1764235138861,0.002,3035.2,3034.8,0.405504]
[1764235139061,0.30861104,3035.1,3034.8,0.405504]
[1764235139267,0.30861104,3035.0,3034.8,0.405504]
[1764235139591,0.472,3035.2,3034.8,0.405504]
[1764235139752,0.30861155,3035.1,3034.8,0.405504]
[1764235139956,0.30861155,3035.0,3034.9,0.37006217]
[1764235140155,0.30861155,3035.0,3034.9,1.23716617]
[1764235140554,0.77851155,3035.0,3034.9,0.77556617]
[1764235140766,0.77851155,3035.0,3034.9,0.405504]
[1764235143363,0.30861155,3035.0,3034.9,0.405504]
[1764235143564,0.30781155,3035.0,3034.9,0.405504]
[1764235145259,0.30781155,3035.0,3034.9,0.867104]
[1764235145587,0.30781155,3035.0,3034.9,4.16210548]
[1764235145782,0.30781155,3035.0,3034.9,4.90783679]
[1764235145989,0.30781155,3035.0,3034.9,1.61283531]
[1764235146689,0.002,3035.1,3035.0,0.405504]
[1764235146909,0.002,3035.1,3035.0,0.613504]
[1764235147113,0.4719,3035.1,3035.0,0.613504]
[1764235147592,0.9419,3035.1,3035.0,0.613504]
[1764235148586,0.4719,3035.1,3035.0,0.613504]
[1764235149982,0.9665,3035.1,3035.0,0.613504]
[1764235151274,0.002,3035.1,3035.0,0.613504]
[1764235151495,0.002,3035.1,3035.0,1.45895403]
[1764235152067,0.002,3035.1,3035.0,4.75384694]
[1764235152494,0.002,3035.1,3035.0,5.25224694]
[1764235153405,0.002,3035.1,3035.0,8.18672352]
[1764235154395,0.002,3035.1,3035.0,5.25224694]
[1764235155492,0.002,3035.1,3035.0,4.75384694]
[1764235155698,0.002,3035.1,3035.0,5.25224694]
[1764235156695,0.002,3035.1,3035.0,4.75384694]
[1764235156872,0.002,3035.1,3035.0,5.25224694]
[1764235159900,0.002,3035.1,3035.0,8.18672352]
[1764235160605,0.002,3035.1,3035.0,8.91231763]
[1764235162274,3.29272308,3037.0,3035.2,0.405504]
[1764235162487,0.4946,3036.6,3035.9,0.405504]
[1764235162701,0.4946,3036.6,3036.1,0.405504]
[1764235163903,0.4946,3036.6,3036.2,3.29359067]
[1764235164112,0.4946,3036.8,3036.3,0.405504]
[1764235164320,0.4946,3036.6,3036.5,0.405504]
[1764235164824,0.9617,3036.6,3036.5,0.405504]
[1764235164988,0.9637,3036.6,3036.5,0.405504]
[1764235165187,0.4691,3036.6,3036.5,0.405504]
[1764235165409,0.9637,3036.6,3036.5,0.405504]
[1764235165918,0.4691,3036.6,3036.5,0.405504]
[1764235166418,0.4691,3036.6,3036.5,4.15336927]
[1764235166419,0.002,3036.6,3036.5,4.15336927]
[1764235166592,0.4691,3036.6,3036.5,1.18492858]
[1764235166792,0.4691,3036.6,3036.5,0.405504]
[1764235166998,0.4691,3036.6,3036.5,3.69876927]
[1764235167417,0.4683,3036.6,3036.5,0.405504]
[1764235167620,0.4683,3036.6,3036.5,1.12553438]
[1764235167845,0.4683,3036.6,3036.5,4.41879965]
[1764235168019,0.4683,3036.6,3036.5,4.87339965]
[1764235168020,0.0012,3036.6,3036.5,4.87339965]
[1764235168820,0.0012,3036.6,3036.5,5.37179965]
[1764235169735,0.0012,3036.6,3036.5,6.09739376]
[1764235169948,0.0012,3036.6,3036.5,8.53347034]
[1764235170251,0.0012,3036.6,3036.5,5.14439376]
[1764235170252,0.4683,3036.6,3036.5,5.14439376]
[1764235170413,0.4683,3036.6,3036.5,5.35239376]
[1764235170912,0.0012,3036.6,3036.5,5.80699376]
[1764235171313,0.0012,3036.6,3036.5,6.30539376]
[1764235171543,0.0012,3036.6,3036.5,5.80699376]
[1764235172048,0.0012,3036.6,3036.5,6.30539376]
[1764235172917,0.0012,3036.6,3036.5,9.23987034]
[1764235173518,0.0012,3036.6,3036.5,10.22866238]
[1764235177241,0.6829,3038.0,3036.7,0.405504]
[1764235177421,0.14016607,3038.4,3037.6,0.405504]
[1764235177615,0.63476607,3038.4,3037.8,0.405504]
[1764235177815,0.63476607,3038.4,3037.5,2.93447658]
[1764235177816,0.4671,3037.6,3037.5,0.405504]
[1764235178016,0.63476607,3038.4,3037.5,0.405504]
[1764235178017,0.4946,3038.3,3037.7,1.13109811]
[1764235179738,0.4671,3037.8,3037.7,1.13109811]
[1764235179961,0.5076,3037.8,3037.7,1.13109811]
[1764235180144,0.9941,3037.8,3037.7,0.208]
[1764235180614,0.9941,3037.8,3037.3,0.405504]
[1764235180819,0.1949,3037.4,3037.3,0.405504]
[1764235181034,0.4747,3037.4,3037.3,1.38513674]
[1764235181239,0.9612,3037.4,3037.3,0.613504]
[1764235181618,0.4747,3037.4,3037.3,0.613504]
[1764235182245,0.4747,3037.4,3037.3,1.13109811]
[1764235182422,0.9612,3037.4,3037.3,4.63149596]
[1764235182819,0.4747,3037.4,3037.3,4.63149596]
[1764235183222,0.4767,3037.4,3037.3,4.63149596]
[1764235183650,0.002,3037.4,3037.3,4.63149596]
[1764235184052,0.002,3037.4,3037.3,6.19794047]
[1764235184224,0.002,3037.4,3037.3,6.66264047]
[1764235184424,0.002,3037.4,3037.3,6.19794047]
[1764235185527,0.002,3037.4,3037.3,6.66264047]
[1764235186625,0.002,3037.4,3037.3,6.19794047]
[1764235186957,0.002,3037.4,3037.3,5.71734047]
[1764235187539,0.002,3037.4,3037.3,6.19794047]
[1764235187847,0.4767,3037.4,3037.3,5.71734047]
[1764235188357,0.9632,3037.4,3037.3,4.63149596]
[1764235188928,0.4767,3037.4,3037.3,4.63149596]
[1764235189456,0.002,3037.4,3037.3,4.63149596]
[1764235189629,0.002,3037.4,3037.3,5.11209596]
[1764235189832,0.002,3037.4,3037.3,4.63149596]
[1764235190050,0.002,3037.4,3037.3,6.19794312]
[1764235190357,0.002,3037.4,3037.3,6.66264312]
[1764235191056,0.0012,3037.4,3037.3,6.66264312]
[1764235192959,0.14016607,3038.4,3037.5,0.405504]
[1764235193265,0.14016607,3038.4,3038.3,1.068904]
[1764235193497,0.14016607,3038.4,3038.3,4.93797469]
[1764235193626,0.14016607,3038.4,3038.3,5.89647216]
[1764235194057,0.14016607,3038.4,3038.3,6.88467141]
[1764235194235,0.4865,3039.6,3038.5,0.72559411]
[1764235194432,0.4865,3039.6,3039.1,0.405504]
[1764235194764,0.4865,3039.6,3039.3,0.405504]
[1764235194932,0.4747,3039.4,3039.0,2.93447658]
[1764235195134,0.4865,3039.6,3039.1,0.405504]
[1764235195332,0.4747,3039.2,3039.1,0.614504]
[1764235195769,0.9612,3039.2,3039.1,0.614504]
[1764235196068,0.1883,3040.0,3039.1,1.095104]
[1764235196283,0.6748,3040.0,3039.5,2.93447658]
[1764235196564,0.6748,3040.0,3039.6,0.90795166]
[1764235196565,0.1883,3040.0,3039.6,0.90795166]
[1764235196764,0.1877,3040.2,3039.7,0.405504]
[1764235196976,0.6742,3040.2,3039.7,0.405504]
[1764235197268,0.4747,3039.8,3039.7,0.405504]